fUST/lending_fUST_20250910
["ID","MTS","AMOUNT","RATE_DAILY","PERIOD"]
[384604022,1757472641288,-480.0,0.00013698,2]
[384604023,1757472641297,-480.0,0.00013698,2]
[384604025,1757472641306,-480.0,0.00013698,2]
[384604026,1757472641315,-480.0,0.00013698,2]
[384604027,1757472641328,-480.0,0.00013698,2]
[384604028,1757472641337,-480.0,0.00013698,2]
[384604029,1757472641346,-480.0,0.00013698,2]
[384604030,1757472641355,-480.0,0.00013698,2]
[384604031,1757472641363,-480.0,0.00013698,2]
[384604032,1757472641372,-480.0,0.00013698,2]
[384604033,1757472641381,-480.0,0.00013698,2]
[384604034,1757472641390,-480.0,0.00013698,2]
[384604035,1757472641399,-446.78393086,0.00013698,2]
[384604036,1757472641414,-33.21606914,0.00013698,2]
[384604037,1757472641423,-480.0,0.00013698,2]
[384604038,1757472641431,-480.0,0.00013698,2]
[384604039,1757472641440,-484.15360271,0.00013698,2]
[384604040,1757472641449,-480.0,0.00013698,2]
[384604041,1757472641458,-480.0,0.00013698,2]
[384604042,1757472641467,-480.0,0.00013698,2]
[384604043,1757472641475,-480.0,0.00013698,2]
[384604044,1757472641484,-534.88915757,0.00013698,2]
[384604045,1757472641493,-480.0,0.00013698,2]
[384604046,1757472641501,-218.95368052,0.00013698,2]
[384605684,1757472658558,3766.08511257,0.0001305,2]
[384605686,1757472658579,6240.09717353,0.0001305,2]
[384605699,1757472866125,172.92826585,0.00013158,2]
[384605700,1757472874922,172.92826585,0.00013158,2]
[384605701,1757472884486,172.92826585,0.00013158,2]
[384605702,1757472910836,834.80849915,0.00013193,2]
[384605703,1757473078843,1275.07062971,0.00013193,2]
[384605705,1757473088212,1131.24890006,0.00013193,2]
[384605706,1757473088236,143.82172965,0.00013193,2]
[384605712,1757473291576,567.0,0.00013192,2]
[384605713,1757473300894,567.0,0.00013192,2]
[384605714,1757473393993,6525.222788,0.00012611,2]
[384605717,1757473419587,293.25,0.00012329,2]
[384605719,1757473501760,1903.71548235,0.0001317,2]
[384605720,1757473501785,519.57121414,0.0001317,2]
[384605724,1757473512218,2423.28669649,0.0001317,2]
[384605733,1757473539100,659.03629848,0.00013282,2]
[384605734,1757473550126,-340.30050203,0.00013416,2]
[384605735,1757473564631,318.73579645,0.00013282,2]
[384605736,1757473570276,-318.73579645,0.00013416,2]
[384605737,1757473570300,-659.03629848,0.00013552,2]
[384605738,1757473570324,-2423.28669649,0.00013572,2]
[384605739,1757473570348,-267.0,0.00013596,2]
[384605740,1757473570370,-300.0,0.00013597,2]
[384605741,1757473570395,-300.0,0.00013597,2]
[384605742,1757473570418,-3654.45844102,0.00013598,2]
[384605743,1757473570440,-192077.48276756,0.00013598,2]
[384605749,1757473665096,1480.0,0.00027397,120]
[384605750,1757473770230,5000.0,0.000145,9]
[384605751,1757473779690,1859.3691489,0.000145,9]
[384605752,1757473787310,400.98500124,0.00013123,2]
[384605753,1757473789441,1603.94000495,0.00013123,2]
[384605754,1757473791817,3605.25614612,0.00013123,2]
[384605756,1757473806589,-390.16635701,0.00015325,7]
[384605757,1757473806715,-609.83364299,0.00018595,20]
[384605781,1757473831876,-664.83194085,0.00013416,2]
[384605782,1757473831886,-664.83194085,0.00013552,2]
[384605784,1757473831896,-1200.0,0.00013596,2]
[384605786,1757473831905,-1200.0,0.00013597,2]
[384605787,1757473831915,-300.0,0.00013597,2]
[384605788,1757473831925,-300.0,0.00013597,2]
[384605789,1757473831934,-300.0,0.00013597,2]
[384605790,1757473831943,-300.0,0.00013597,2]
[384605791,1757473831953,-300.0,0.00013597,2]
[384605792,1757473831963,-17267.14363173,0.00013598,2]
[384605793,1757473831980,-1290.6901376,0.00013598,2]
[384605796,1757473832063,-2490.81191806,0.00013598,2]
[384605797,1757473832073,-2134.17110994,0.00013605,2]
[384605798,1757473832083,-586.3422425,0.00013605,2]
[384605890,1757473839850,-506.83698127,0.00013605,2]
[384605893,1757473839863,-463.49354728,0.00013605,2]
[384605899,1757473839907,-22277.01967521,0.00013605,2]
[384605901,1757473839916,-2423.28669647,0.00013652,2]
[384605903,1757473839926,-500.0,0.00013672,2]
[384605905,1757473839935,-255.18335104,0.00013672,2]
[384605907,1757473839945,-643.86054954,0.00013672,2]
[384605909,1757473839954,-500.82849927,0.00013673,2]
[384605911,1757473839963,-500.0,0.00013673,2]
[384605913,1757473839972,-500.0,0.00013673,2]
[384605915,1757473839981,-500.0,0.00013673,2]
[384605917,1757473839991,-500.89700499,0.00013673,2]
[384605920,1757473840000,-500.0,0.00013673,2]
[384605923,1757473840009,-500.0,0.00013673,2]
[384605926,1757473840018,-500.2014928,0.00013673,2]
[384605929,1757473840027,-500.0,0.00013673,2]
[384605932,1757473840036,-500.44539239,0.00013673,2]
[384605934,1757473840046,-500.0,0.00013673,2]
[384605936,1757473840055,-504.54352819,0.00013673,2]
[384605938,1757473840064,-47175.1869663,0.00013673,2]
[384605940,1757473840073,-216.081,0.00013697,2]
[384605942,1757473840083,-480.0,0.00013698,2]
[384605944,1757473840092,-482.01544749,0.00013698,2]
[384605946,1757473840101,-480.0,0.00013698,2]
[384605948,1757473840111,-481.49212541,0.00013698,2]
[384605950,1757473840120,-480.0,0.00013698,2]
[384605952,1757473840129,-482.08986602,0.00013698,2]
[384605954,1757473840138,-322.97346732,0.00013698,2]
[384605956,1757473840147,-480.0,0.00013698,2]
[384605958,1757473840156,-480.0,0.00013698,2]
[384605960,1757473840165,-483.51871798,0.00013698,2]
[384605962,1757473840175,-376.56155984,0.00013698,2]
[384605964,1757473840185,-483.14379946,0.00013698,2]
[384605966,1757473840195,-480.0,0.00013698,2]
[384605968,1757473840204,-480.0,0.00013698,2]
[384605970,1757473840214,-480.0,0.00013698,2]
[384605972,1757473840223,-346.48644283,0.00013698,2]
[384605974,1757473840232,-485.77387856,0.00013698,2]
[384605976,1757473840241,-481.92197855,0.00013698,2]
[384605978,1757473840250,-482.78875913,0.00013698,2]
[384605980,1757473840259,-480.0,0.00013698,2]
[384605982,1757473840269,-480.0,0.00013698,2]
[384605984,1757473840281,-480.0,0.00013698,2]
[384605986,1757473840290,-2738.9498006,0.00013698,2]
[384605988,1757473840299,-480.0,0.00013698,2]
[384605990,1757473840308,-183.78282936,0.00013698,2]
[384605991,1757473840318,-480.0,0.00013698,2]
[384605992,1757473840327,-485.12510185,0.00013698,2]
[384605993,1757473840336,-480.0,0.00013698,2]
[384605994,1757473840345,-482.07594619,0.00013698,2]
[384605996,1757473840355,-475.62313008,0.00013698,2]
[384605998,1757473840366,-480.0,0.00013698,2]
[384605999,1757473840375,-532.84539001,0.00013698,2]
[384606001,1757473840385,-484.98024436,0.00013698,2]
[384606003,1757473840393,-480.0,0.00013698,2]
[384606005,1757473840402,-480.0,0.00013698,2]
[384606006,1757473840411,-480.0,0.00013698,2]
[384606008,1757473840420,-480.0,0.00013698,2]
[384606010,1757473840429,-500.0,0.00013698,2]
[384606012,1757473840439,-480.0,0.00013698,2]
[384606014,1757473840448,-480.0,0.00013698,2]
[384606016,1757473840456,-480.0,0.00013698,2]
[384606018,1757473840465,-480.0,0.00013698,2]
[384606020,1757473840475,-480.0,0.00013698,2]
[384606022,1757473840483,-607.72435667,0.00013698,2]
[384606024,1757473840492,-594.17745097,0.00013698,2]
[384606026,1757473840501,-480.0,0.00013698,2]
[384606028,1757473840511,-480.0,0.00013698,2]
[384606030,1757473840519,-480.0,0.00013698,2]
[384606032,1757473840529,-480.0,0.00013698,2]
[384606034,1757473840538,-480.0,0.00013698,2]
[384606036,1757473840548,-482.43954623,0.00013698,2]
[384606038,1757473840558,-480.0,0.00013698,2]
[384606040,1757473840567,-480.0,0.00013698,2]
[384606042,1757473840576,-481.45115192,0.00013698,2]
[384606044,1757473840585,-482.12678658,0.00013698,2]
[384606046,1757473840595,-480.0,0.00013698,2]
[384606048,1757473840604,-157.0,0.00013698,2]
[384606049,1757473840614,-480.0,0.00013698,2]
[384606050,1757473840623,-480.0,0.00013698,2]
[384606051,1757473840634,-480.0,0.00013698,2]
[384606052,1757473840643,-480.0,0.00013698,2]
[384606053,1757473840652,-480.0,0.00013698,2]
[384606054,1757473840662,-410.88837955,0.00013698,2]
[384606055,1757473840671,-382.86699867,0.00013698,2]
[384606056,1757473840680,-480.0,0.00013698,2]
[384606057,1757473840690,-480.0,0.00013698,2]
[384606058,1757473840700,-480.0,0.00013698,2]
[384606059,1757473840709,-480.0,0.00013698,2]
[384606060,1757473840718,-480.0,0.00013698,2]
[384606061,1757473840727,-480.0,0.00013698,2]
[384606062,1757473840737,-480.0,0.00013698,2]
[384606063,1757473840747,-480.0,0.00013698,2]
[384606064,1757473840756,-480.0,0.00013698,2]
[384606065,1757473840765,-491.56827888,0.00013698,2]
[384606066,1757473840907,-480.0,0.00013698,2]
[384606067,1757473840918,-485.93698758,0.00013698,2]
[384606068,1757473840930,-480.0,0.00013698,2]
[384606069,1757473840939,-480.0,0.00013698,2]
[384606070,1757473840950,-480.0,0.00013698,2]
[384606071,1757473840962,-489.19755833,0.00013698,2]
[384606072,1757473840971,-480.0,0.00013698,2]
[384606073,1757473840981,-481.32803372,0.00013698,2]
[384606074,1757473840990,-480.0,0.00013698,2]
[384606075,1757473840999,-480.0,0.00013698,2]
[384606076,1757473841008,-480.0,0.00013698,2]
[384606077,1757473841018,-480.0,0.00013698,2]
[384606078,1757473841027,-167.28264663,0.00013698,2]
[384606079,1757473841037,-480.0,0.00013698,2]
[384606080,1757473841046,-480.0,0.00013698,2]
[384606081,1757473841058,-480.0,0.00013698,2]
[384606082,1757473841067,-480.0,0.00013698,2]
[384606083,1757473841079,-259.79002951,0.00013698,2]
[384606084,1757473841089,-480.0,0.00013698,2]
[384606085,1757473841099,-480.0,0.00013698,2]
[384606086,1757473841109,-480.0,0.00013698,2]
[384606087,1757473841118,-480.0,0.00013698,2]
[384606088,1757473841127,-480.0,0.00013698,2]
[384606089,1757473841136,-480.0,0.00013698,2]
[384606090,1757473841147,-480.0,0.00013698,2]
[384606091,1757473841156,-480.0,0.00013698,2]
[384606092,1757473841165,-480.0,0.00013698,2]
[384606093,1757473841174,-579.46915122,0.00013698,2]
[384606094,1757473841183,-206.76830095,0.00013698,2]
[384606095,1757473841192,-480.0,0.00013698,2]
[384606096,1757473841201,-480.0,0.00013698,2]
[384606097,1757473841210,-480.0,0.00013698,2]
[384606098,1757473841219,-480.0,0.00013698,2]
[384606099,1757473841228,-480.0,0.00013698,2]
[384606100,1757473841237,-480.0,0.00013698,2]
[384606101,1757473841247,-480.0,0.00013698,2]
[384606102,1757473841256,-480.0,0.00013698,2]
[384606103,1757473841265,-485.01660734,0.00013698,2]
[384606104,1757473841274,-483.92177476,0.00013698,2]
[384606105,1757473841283,-480.0,0.00013698,2]
[384606106,1757473841293,-480.0,0.00013698,2]
[384606107,1757473841302,-480.0,0.00013698,2]
[384606108,1757473841313,-483.06486785,0.00013698,2]
[384606109,1757473841322,-480.0,0.00013698,2]
[384606110,1757473841331,-480.0,0.00013698,2]
[384606111,1757473841340,-480.0,0.00013698,2]
[384606112,1757473841349,-480.0,0.00013698,2]
[384606113,1757473841359,-483.96174937,0.00013698,2]
[384606114,1757473841370,-493.56461874,0.00013698,2]
[384606115,1757473841381,-480.0,0.00013698,2]
[384606116,1757473841390,-480.0,0.00013698,2]
[384606117,1757473841400,-480.0,0.00013698,2]
[384606118,1757473841410,-480.0,0.00013698,2]
[384606119,1757473841419,-480.0,0.00013698,2]
[384606120,1757473841429,-480.0,0.00013698,2]
[384606121,1757473841439,-480.0,0.00013698,2]
[384606122,1757473841449,-480.0,0.00013698,2]
[384606123,1757473841459,-480.0,0.00013698,2]
[384606124,1757473841470,-480.0,0.00013698,2]
[384606125,1757473841482,-480.0,0.00013698,2]
[384606126,1757473841492,-480.0,0.00013698,2]
[384606127,1757473841501,-218.66532353,0.00013698,2]
[384606128,1757473841512,-480.0,0.00013698,2]
[384606129,1757473841522,-480.0,0.00013698,2]
[384606130,1757473841532,-480.0,0.00013698,2]
[384606131,1757473841541,-157.0,0.00013698,2]
[384606132,1757473841551,-577.36515164,0.00013698,2]
[384606133,1757473841560,-480.0,0.00013698,2]
[384606134,1757473841570,-480.0,0.00013698,2]
[384606135,1757473841579,-480.0,0.00013698,2]
[384606136,1757473841588,-480.0,0.00013698,2]
[384606137,1757473841597,-487.75320248,0.00013698,2]
[384606138,1757473841606,-480.0,0.00013698,2]
[384606139,1757473841616,-480.0,0.00013698,2]
[384606140,1757473841625,-546.95731699,0.00013698,2]
[384606141,1757473841635,-260.50311606,0.00013698,2]
[384606142,1757473841644,-480.0,0.00013698,2]
[384606143,1757473841653,-4179.1,0.00013698,2]
[384606144,1757473841663,-480.0,0.00013698,2]
[384606145,1757473841672,-483.18488262,0.00013698,2]
[384606146,1757473841682,-480.0,0.00013698,2]
[384606147,1757473841691,-267.89490344,0.00013698,2]
[384606148,1757473841701,-485.10053294,0.00013698,2]
[384606149,1757473841710,-480.0,0.00013698,2]
[384606150,1757473841720,-556.87808462,0.00013698,2]
[384606151,1757473841729,-480.0,0.00013698,2]
[384606152,1757473841739,-480.0,0.00013698,2]
[384606153,1757473841748,-480.0,0.00013698,2]
[384606154,1757473841757,-480.0,0.00013698,2]
[384606155,1757473841767,-480.0,0.00013698,2]
[384606156,1757473841781,-480.0,0.00013698,2]
[384606157,1757473841791,-480.0,0.00013698,2]
[384606158,1757473841801,-481.99846383,0.00013698,2]
[384606159,1757473841810,-480.0,0.00013698,2]
[384606160,1757473841821,-480.0,0.00013698,2]
[384606161,1757473841831,-480.96819034,0.00013698,2]
[384606162,1757473841840,-480.0,0.00013698,2]
[384606163,1757473841850,-480.0,0.00013698,2]
[384606164,1757473841861,-241.21588419,0.00013698,2]
[384606165,1757473841870,-480.0,0.00013698,2]
[384606166,1757473841879,-480.0,0.00013698,2]
[384606167,1757473841888,-480.0,0.00013698,2]
[384606168,1757473841900,-481.15068463,0.00013698,2]
[384606169,1757473841910,-480.0,0.00013698,2]
[384606170,1757473841919,-480.0,0.00013698,2]
[384606171,1757473841928,-480.0,0.00013698,2]
[384606172,1757473841937,-488.58205029,0.00013698,2]
[384606173,1757473841946,-480.0,0.00013698,2]
[384606174,1757473841955,-480.0,0.00013698,2]
[384606175,1757473841965,-480.0,0.00013698,2]
[384606176,1757473841975,-480.0,0.00013698,2]
[384606177,1757473841985,-480.0,0.00013698,2]
[384606178,1757473841994,-480.0,0.00013698,2]
[384606179,1757473842004,-480.0,0.00013698,2]
[384606180,1757473842013,-480.0,0.00013698,2]
[384606181,1757473842023,-480.0,0.00013698,2]
[384606182,1757473842032,-484.19370494,0.00013698,2]
[384606183,1757473842042,-480.0,0.00013698,2]
[384606184,1757473842051,-482.17578056,0.00013698,2]
[384606185,1757473842061,-480.0,0.00013698,2]
[384606186,1757473842070,-1003.48057151,0.00013698,2]
[384606187,1757473842080,-480.0,0.00013698,2]
[384606188,1757473842089,-480.0,0.00013698,2]
[384606189,1757473842099,-480.0,0.00013698,2]
[384606190,1757473842109,-480.0,0.00013698,2]
[384606191,1757473842119,-480.0,0.00013698,2]
[384606192,1757473842131,-480.0,0.00013698,2]
[384606193,1757473842142,-483.50588617,0.00013698,2]
[384606194,1757473842151,-480.0,0.00013698,2]
[384606195,1757473842160,-480.0,0.00013698,2]
[384606196,1757473842169,-480.0,0.00013698,2]
[384606197,1757473842179,-482.35174034,0.00013698,2]
[384606198,1757473842188,-480.0,0.00013698,2]
[384606199,1757473842198,-480.0,0.00013698,2]
[384606200,1757473842207,-883.58,0.00013698,2]
[384606201,1757473842217,-480.0,0.00013698,2]
[384606202,1757473842226,-157.11565503,0.00013698,2]
[384606203,1757473842236,-480.0,0.00013698,2]
[384606204,1757473842245,-157.0,0.00013698,2]
[384606206,1757473842254,-480.0,0.00013698,2]
[384606208,1757473842264,-480.0,0.00013698,2]
[384606209,1757473842273,-1668.15,0.00013698,2]
[384606211,1757473842282,-480.0,0.00013698,2]
[384606213,1757473842292,-480.0,0.00013698,2]
[384606214,1757473842301,-480.0,0.00013698,2]
[384606215,1757473842310,-480.0,0.00013698,2]
[384606216,1757473842321,-480.0,0.00013698,2]
[384606218,1757473842330,-480.0,0.00013698,2]
[384606219,1757473842340,-480.0,0.00013698,2]
[384606220,1757473842350,-480.0,0.00013698,2]
[384606221,1757473842363,-480.0,0.00013698,2]
[384606222,1757473842372,-480.0,0.00013698,2]
[384606223,1757473842382,-480.0,0.00013698,2]
[384606224,1757473842393,-480.0,0.00013698,2]
[384606225,1757473842403,-481.95225797,0.00013698,2]
[384606226,1757473842413,-480.0,0.00013698,2]
[384606227,1757473842423,-480.0,0.00013698,2]
[384606228,1757473842434,-480.0,0.00013698,2]
[384606229,1757473842444,-568.16866517,0.00013698,2]
[384606230,1757473842454,-480.0,0.00013698,2]
[384606231,1757473842464,-480.0,0.00013698,2]
[384606232,1757473842473,-480.0,0.00013698,2]
[384606234,1757473842484,-480.0,0.00013698,2]
[384606235,1757473842495,-495.55804785,0.00013698,2]
[384606236,1757473842504,-480.0,0.00013698,2]
[384606237,1757473842513,-480.0,0.00013698,2]
[384606238,1757473842522,-480.0,0.00013698,2]
[384606239,1757473842531,-480.0,0.00013698,2]
[384606240,1757473842540,-482.32359154,0.00013698,2]
[384606241,1757473842550,-483.8030669,0.00013698,2]
[384606242,1757473842559,-480.0,0.00013698,2]
[384606243,1757473842568,-481.78436156,0.00013698,2]
[384606244,1757473842578,-480.0,0.00013698,2]
[384606245,1757473842587,-499.66372092,0.00013698,2]
[384606246,1757473842596,-480.0,0.00013698,2]
[384606247,1757473842606,-480.0,0.00013698,2]
[384606248,1757473842615,-480.0,0.00013698,2]
[384606249,1757473842625,-480.0,0.00013698,2]
[384606250,1757473842634,-480.0,0.00013698,2]
[384606251,1757473842644,-480.0,0.00013698,2]
[384606252,1757473842656,-480.0,0.00013698,2]
[384606253,1757473842666,-490.84237826,0.00013698,2]
[384606254,1757473842675,-721.11,0.00013698,2]
[384606255,1757473842684,-482.37248153,0.00013698,2]
[384606256,1757473842693,-489.79024363,0.00013698,2]
[384606257,1757473842703,-480.0,0.00013698,2]
[384606258,1757473842712,-487.09206768,0.00013698,2]
[384606259,1757473842721,-713.34,0.00013698,2]
[384606260,1757473842730,-493.55654676,0.00013698,2]
[384606261,1757473842740,-481.40701494,0.00013698,2]
[384606262,1757473842749,-480.0,0.00013698,2]
[384606263,1757473842759,-481.5663338,0.00013698,2]
[384606264,1757473842768,-486.99534396,0.00013698,2]
[384606265,1757473842782,-481.22460268,0.00013698,2]
[384606266,1757473842791,-480.0,0.00013698,2]
[384606267,1757473842800,-484.41752546,0.00013698,2]
[384606268,1757473842811,-480.0,0.00013698,2]
[384606269,1757473842820,-480.0,0.00013698,2]
[384606270,1757473842829,-480.0,0.00013698,2]
[384606271,1757473842839,-480.0,0.00013698,2]
[384606272,1757473842848,-500.0,0.00013698,2]
[384606273,1757473842857,-696.608054,0.00013699,2]
[384606274,1757473842866,-301.056754,0.00013699,2]
[384606275,1757473842876,-359.51656414,0.0001373,2]
[384606276,1757473842885,-441.18876245,0.0001373,2]
[384606277,1757473842894,-2423.28669647,0.00013731,2]
[384606278,1757473842903,-2423.28669647,0.00013811,2]
[384606279,1757473842913,-343.7280406,0.00013814,2]
[384606280,1757473842922,-927.8108631,0.00013814,2]
[384606281,1757473843379,-807.66072233,0.00013469,2]
[384606282,1757473843389,-447.10129931,0.00013814,2]
[384606283,1757473843398,-211.23045905,0.00013814,2]
[384606336,1757473845892,-480.0,0.00013698,2]
[384606338,1757473845901,-2881.57885783,0.00013814,2]
[384606355,1757473846051,-0.74304854,0.00013814,2]
[384606357,1757473846061,-5499.64864964,0.00013814,2]
[384606359,1757473846070,-1184.46628057,0.00013814,2]
[384606399,1757473940709,469.19884213,0.00013123,2]
[384606400,1757473940731,6939.53589237,0.00013123,2]
[384606401,1757473952828,496.13,0.00012329,2]
[384606408,1757474080244,2564.34410763,0.000128,2]
[384606409,1757474080265,10000.01,0.000128,2]
[384606410,1757474080286,3995.67733007,0.000128,2]
[384606411,1757474096063,1546.07,0.00012329,2]
[384606412,1757474106554,1535.01,0.00012329,2]
[384606413,1757474117342,1514.97,0.00012329,2]
[384606414,1757474127786,1408.28266993,0.00012329,2]
[384606415,1757474127809,48.15733007,0.00012329,2]
[384606416,1757474138228,1324.8,0.00012329,2]
[384606417,1757474148551,173.44616975,0.00013192,2]
[384606418,1757474148764,1104.0,0.00012329,2]
[384606422,1757474159178,920.0,0.00012329,2]
[384606423,1757474169601,766.67,0.00012329,2]
[384606424,1757474173666,766.67,0.00012205,2]
[384606425,1757474180051,638.89,0.00012329,2]
[384606426,1757474190609,532.41,0.00012329,2]
[384606427,1757474195251,3158.77968343,0.0001475,19]
[384606428,1757474198962,173.44616975,0.00013192,2]
[384606429,1757474201099,443.67,0.00012329,2]
[384606430,1757474211559,369.73,0.00012329,2]
[384606431,1757474222392,369.73,0.00012329,2]
[384606432,1757474224175,173.44616975,0.00013192,2]
[384606433,1757474233400,308.11,0.00012329,2]
[384606434,1757474244354,246.49,0.00012329,2]
[384606435,1757474248928,173.44616975,0.00013192,2]
[384606436,1757474254945,154.05,0.00012329,2]
[384606437,1757474265964,770.29,0.00012329,2]
[384606438,1757474272590,173.44616975,0.00013192,2]
[384606439,1757474290177,173.44616975,0.00013192,2]
[384606442,1757474440886,1086.0,0.00025,30]
[384606443,1757474488106,5000.0,0.000145,9]
[384606444,1757474512086,195.66565143,0.00013205,2]
[384606445,1757474512117,54.33434857,0.00013205,2]
[384606446,1757474533864,1258.47714352,0.00013131,2]
[384606447,1757474536075,5028.8746655,0.00013131,2]
[384606448,1757474536330,250.0,0.00013205,2]
[384606449,1757474552722,403.45,0.00012329,2]
[384606451,1757474561139,250.0,0.00013205,2]
[384606452,1757474575927,354.35382157,0.00027,120]
[384606453,1757474585227,250.0,0.00013205,2]
[384606454,1757474611078,250.0,0.00013205,2]
[384606455,1757474635543,250.0,0.00013205,2]
[384606456,1757474645020,160.06,0.00012329,2]
[384606457,1757474655445,800.31,0.00012329,2]
[384606458,1757474657020,265.788013,0.0001319,2]
[384606459,1757474657362,271.47966936,0.00013285,2]
[384606460,1757474661019,250.0,0.00013205,2]
[384606481,1757474760630,257.23616005,0.00013,2]
[384606482,1757474761158,10000.01,0.00013,2]
[384606483,1757474761180,10000.01,0.00013,2]
[384606484,1757474761202,10000.01,0.00013,2]
[384606485,1757474761224,10000.01,0.00013,2]
[384606486,1757474761245,10000.01,0.00013,2]
[384606487,1757474761268,7602.88822385,0.00013,2]
[384606488,1757474768691,1134.75,0.00012329,2]
[384606489,1757474772022,250.0,0.00013186,2]
[384606490,1757474779400,1012.37177615,0.00012329,2]
[384606491,1757474779424,141.96822385,0.00012329,2]
[384606492,1757474779823,9858.04177615,0.00013,2]
[384606493,1757474779846,10000.01,0.00013,2]
[384606494,1757474779868,10000.01,0.00013,2]
[384606495,1757474779890,10000.01,0.00013,2]
[384606496,1757474779911,9376.1654644,0.00013,2]
[384606498,1757474789859,623.8445356,0.00012329,2]
[384606499,1757474789885,338.1054644,0.00012329,2]
[384606500,1757474790108,250.0,0.00013186,2]
[384606502,1757474800270,801.62,0.00012329,2]
[384606504,1757474810835,668.02,0.00012329,2]
[384606505,1757474816119,250.0,0.00013186,2]
[384606507,1757474821514,556.68,0.00012329,2]
[384606508,1757474832198,556.68,0.00012329,2]
[384606510,1757474840442,250.0,0.00013186,2]
[384606511,1757474842624,371.12,0.00012329,2]
[384606512,1757474846117,-250.0,0.00013319,2]
[384606513,1757474846142,-173.44616975,0.00013325,2]
[384606514,1757474846163,-173.44616975,0.0001346,2]
[384606515,1757474846185,-964.35234183,0.00013598,2]
[384606516,1757474846205,-1200.0,0.00013694,2]
[384606517,1757474846227,-300.0,0.00013694,2]
[384606518,1757474846249,-1200.0,0.00013694,2]
[384606519,1757474846270,-300.0,0.00013695,2]
[384606520,1757474846291,-300.0,0.00013695,2]
[384606521,1757474846313,-300.0,0.00013695,2]
[384606522,1757474846334,-10915.38909509,0.00013695,2]
[384606523,1757474846356,-217.40008424,0.00013697,2]
[384606524,1757474846380,-500.0,0.00013697,2]
[384606525,1757474846404,-500.0,0.00013697,2]
[384606526,1757474846425,-600.0,0.00013697,2]
[384606527,1757474846449,-500.0,0.00013697,2]
[384606528,1757474846473,-500.0,0.00013697,2]
[384606529,1757474846497,-500.0,0.00013697,2]
[384606530,1757474846519,-500.0,0.00013697,2]
[384606531,1757474846543,-500.0,0.00013697,2]
[384606532,1757474846567,-500.0,0.00013697,2]
[384606533,1757474846590,-500.0,0.00013697,2]
[384606534,1757474846612,-500.0,0.00013697,2]
[384606535,1757474846636,-626.79087649,0.00013697,2]
[384606536,1757474846658,-300.0,0.00013697,2]
[384606537,1757474846686,-281.02398855,0.00013697,2]
[384606538,1757474846715,-500.0,0.00013697,2]
[384606539,1757474846740,-341.19771901,0.00013697,2]
[384606540,1757474853190,309.27,0.00012329,2]
[384606542,1757474863651,257.72,0.00012329,2]
[384606543,1757474874115,214.77,0.00012329,2]
[384606544,1757474884540,178.98,0.00012329,2]
[384606545,1757474895012,894.9,0.00012329,2]
[384606548,1757474959820,405.0,0.00027397,120]
[384606549,1757474977229,161.44364114,0.00012,2]
[384606573,1757475032109,-576.33285354,0.00013424,2]
[384606582,1757475032218,-4384.42346393,0.00013424,2]
[384606583,1757475032227,-171.18194806,0.0001346,2]
[384606584,1757475032236,-751.86083279,0.000135,2]